[Event "Late-Titled-Tuesday-Blitz-June-04-2024"]
[Site "Chess.com"]
[Date "2024.06.04"]
[Round "7"]
[White "Rud_Makarian"]
[Black "FXDon77"]
[Result "1-0"]
[WhiteElo "2991"]
[BlackElo "2868"]
[TimeControl "180+1"]
[EndTime "15:16:49 PDT"]
[Termination "Rud_Makarian won by resignation"]

1. d4 {[%clk 0:02:59.1]} 1... Nf6 {[%clk 0:02:58.7]} 2. c4 {[%clk 0:02:59.4]}
2... e6 {[%clk 0:02:59]} 3. Nf3 {[%clk 0:02:59.5]} 3... d5 {[%clk 0:02:58.8]} 4.
g3 {[%clk 0:02:59.6]} 4... Be7 {[%clk 0:02:58.9]} 5. Bg2 {[%clk 0:02:59.8]} 5...
O-O {[%clk 0:02:59.6]} 6. O-O {[%clk 0:03:00.7]} 6... dxc4 {[%clk 0:03:00.1]} 7.
Qc2 {[%clk 0:03:01.4]} 7... a6 {[%clk 0:03:00.7]} 8. a4 {[%clk 0:03:01.6]} 8...
Bd7 {[%clk 0:03:00.5]} 9. Qxc4 {[%clk 0:03:01.2]} 9... Bc6 {[%clk 0:03:00.9]}
10. Bg5 {[%clk 0:02:59]} 10... Bd5 {[%clk 0:03:00.8]} 11. Qc2 {[%clk 0:02:56.6]}
11... Be4 {[%clk 0:03:00.9]} 12. Qd1 {[%clk 0:02:45.9]} 12... c5 {[%clk
0:02:54.5]} 13. dxc5 {[%clk 0:02:36.4]} 13... Bxc5 {[%clk 0:02:37.9]} 14. Nc3
{[%clk 0:02:35.9]} 14... Bc6 {[%clk 0:02:34.4]} 15. Ne5 {[%clk 0:02:27.2]} 15...
Bxg2 {[%clk 0:02:33.3]} 16. Kxg2 {[%clk 0:02:28.1]} 16... Bd4 {[%clk 0:01:48.7]}
17. Bxf6 {[%clk 0:01:59.4]} 17... gxf6 {[%clk 0:01:48.3]} 18. Nd3 {[%clk
0:02:00.1]} 18... Bxc3 {[%clk 0:01:47]} 19. bxc3 {[%clk 0:02:01]} 19... Nc6
{[%clk 0:01:45.2]} 20. Rb1 {[%clk 0:01:53.7]} 20... Rb8 {[%clk 0:01:34]} 21. Qc1
{[%clk 0:01:49.3]} 21... Qd5+ {[%clk 0:01:26.8]} 22. f3 {[%clk 0:01:41.5]} 22...
Qc4 {[%clk 0:01:26.7]} 23. Qh6 {[%clk 0:01:16.7]} 23... Qxc3 {[%clk 0:01:09.8]}
24. Rfc1 {[%clk 0:01:07.8]} 24... Qd4 {[%clk 0:01:09.4]} 25. Rb3 {[%clk
0:00:43.3]} 25... f5 {[%clk 0:01:05.7]} 26. Rcb1 {[%clk 0:00:37.7]} 26... b5
{[%clk 0:00:59.2]} 27. axb5 {[%clk 0:00:36]} 27... axb5 {[%clk 0:00:59.3]} 28.
Rxb5 {[%clk 0:00:35.3]} 28... Rxb5 {[%clk 0:00:59.8]} 29. Rxb5 {[%clk
0:00:36.1]} 29... Qg7 {[%clk 0:00:32.6]} 30. Qxg7+ {[%clk 0:00:22.2]} 30... Kxg7
{[%clk 0:00:32.6]} 31. Rc5 {[%clk 0:00:22.9]} 31... Rc8 {[%clk 0:00:27.6]} 32.
Kf2 {[%clk 0:00:20.4]} 32... Ne7 {[%clk 0:00:27.6]} 33. Ra5 {[%clk 0:00:19.9]}
33... Kf6 {[%clk 0:00:26.2]} 34. h3 {[%clk 0:00:17.9]} 34... Nc6 {[%clk
0:00:24.7]} 35. Ra4 {[%clk 0:00:17.3]} 35... h6 {[%clk 0:00:20.2]} 36. g4 {[%clk
0:00:16.9]} 36... fxg4 {[%clk 0:00:19.5]} 37. hxg4 {[%clk 0:00:17.8]} 37... Kg7
{[%clk 0:00:15.1]} 38. Nf4 {[%clk 0:00:17]} 38... Ne7 {[%clk 0:00:10.8]} 39. Ra7
{[%clk 0:00:16.5]} 39... Re8 {[%clk 0:00:05]} 40. Kg3 {[%clk 0:00:16]} 40... Nd5
{[%clk 0:00:03.9]} 41. Nh5+ {[%clk 0:00:15.3]} 41... Kg6 {[%clk 0:00:03.7]} 42.
e4 {[%clk 0:00:14.6]} 42... Nf6 {[%clk 0:00:03.1]} 43. Nf4+ {[%clk 0:00:15.2]}
43... Kg7 {[%clk 0:00:03.6]} 44. e5 {[%clk 0:00:15]} 44... Nd5 {[%clk
0:00:03.1]} 45. Nxd5 {[%clk 0:00:13.9]} 45... exd5 {[%clk 0:00:03.3]} 46. f4
{[%clk 0:00:14.5]} 46... Rd8 {[%clk 0:00:03.6]} 47. f5 {[%clk 0:00:12.7]} 47...
d4 {[%clk 0:00:03.7]} 48. e6 {[%clk 0:00:13.2]} 48... d3 {[%clk 0:00:03.1]} 49.
Rxf7+ {[%clk 0:00:13.8]} 49... Kg8 {[%clk 0:00:02]} 50. Rd7 {[%clk 0:00:14.6]}
50... Re8 {[%clk 0:00:01]} 51. Rxd3 {[%clk 0:00:14.6]} 51... Kg7 {[%clk
0:00:01.9]} 52. Rd7+ {[%clk 0:00:12.6]} 1-0

[Event "Late-Titled-Tuesday-Blitz-June-04-2024"]
[Site "Chess.com"]
[Date "2024.06.04"]
[Round "7"]
[White "TanitoluwaAps116"]
[Black "Larax"]
[Result "1/2-1/2"]
[WhiteElo "2700"]
[BlackElo "2527"]
[TimeControl "180+1"]
[EndTime "15:16:53 PDT"]
[Termination "Game drawn by agreement"]

1. Nf3 {[%clk 0:02:49.3]} 1... d5 {[%clk 0:02:59.1]} 2. b3 {[%clk 0:02:41.9]}
2... c5 {[%clk 0:02:56.4]} 3. e3 {[%clk 0:02:41.5]} 3... a6 {[%clk 0:02:56.7]}
4. Bb2 {[%clk 0:02:36.4]} 4... Nc6 {[%clk 0:02:57]} 5. g3 {[%clk 0:02:36.2]}
5... Nf6 {[%clk 0:01:55.6]} 6. Bg2 {[%clk 0:02:34.4]} 6... e6 {[%clk 0:01:56.1]}
7. O-O {[%clk 0:02:31.9]} 7... Be7 {[%clk 0:01:56.6]} 8. d4 {[%clk 0:02:31.3]}
8... O-O {[%clk 0:01:53.2]} 9. Nbd2 {[%clk 0:02:19.4]} 9... b5 {[%clk 0:01:34]}
10. dxc5 {[%clk 0:02:12.1]} 10... Bxc5 {[%clk 0:01:33.5]} 11. c4 {[%clk
0:02:10.9]} 11... Bb7 {[%clk 0:01:22.1]} 12. cxd5 {[%clk 0:02:02.8]} 12... Nxd5
{[%clk 0:01:21.9]} 13. Ne4 {[%clk 0:02:02]} 13... Be7 {[%clk 0:01:21.8]} 14. Rc1
{[%clk 0:01:42.8]} 14... Qb6 {[%clk 0:01:21.8]} 15. Nd4 {[%clk 0:01:37.8]} 15...
Rac8 {[%clk 0:01:17.6]} 16. Nxc6 {[%clk 0:01:11.9]} 16... Bxc6 {[%clk
0:01:17.8]} 17. Qg4 {[%clk 0:01:09.6]} 17... g6 {[%clk 0:00:57.8]} 18. Bd4
{[%clk 0:00:44.5]} 18... Qb7 {[%clk 0:00:51.8]} 19. Nc5 {[%clk 0:00:31.2]} 19...
Bxc5 {[%clk 0:00:34.2]} 20. Rxc5 {[%clk 0:00:32.1]} 20... Nb4 {[%clk 0:00:20.5]}
21. Qh4 {[%clk 0:00:10.8]} 21... e5 {[%clk 0:00:15.3]} 22. Bxe5 {[%clk
0:00:06.1]} 22... f6 {[%clk 0:00:15]} 23. Bxc6 {[%clk 0:00:04.3]} 23... Rxc6
{[%clk 0:00:15.5]} 24. Qxb4 {[%clk 0:00:03.9]} 24... fxe5 {[%clk 0:00:15.1]} 25.
Rxc6 {[%clk 0:00:04]} 25... Qxc6 {[%clk 0:00:15.1]} 26. Qe7 {[%clk 0:00:04.7]}
26... Qd5 {[%clk 0:00:13.5]} 27. Re1 {[%clk 0:00:04.5]} 27... Qd2 {[%clk
0:00:12.9]} 28. Qe6+ {[%clk 0:00:04.2]} 28... Rf7 {[%clk 0:00:12.4]} 29. Qe8+
{[%clk 0:00:04.1]} 29... Rf8 {[%clk 0:00:11.3]} 30. Qe6+ {[%clk 0:00:04.7]}
30... Rf7 {[%clk 0:00:11.9]} 31. Rf1 {[%clk 0:00:05.6]} 31... Qxa2 {[%clk
0:00:09.6]} 32. h4 {[%clk 0:00:02.8]} 32... a5 {[%clk 0:00:03.7]} 33. Kh1 {[%clk
0:00:02.6]} 33... g5 {[%clk 0:00:04.2]} 34. Rd1 {[%clk 0:00:02.4]} 34... Qxf2
{[%clk 0:00:03.1]} 35. Rd8+ {[%clk 0:00:02.6]} 35... Kg7 {[%clk 0:00:03.7]} 36.
Qxe5+ {[%clk 0:00:02.9]} 36... Qf6 {[%clk 0:00:03.9]} 37. Qxg5+ {[%clk
0:00:02.1]} 37... Qxg5 {[%clk 0:00:04.1]} 38. hxg5 {[%clk 0:00:03]} 38... Rf3
{[%clk 0:00:04.4]} 39. Rd5 {[%clk 0:00:02.7]} 39... Rxe3 {[%clk 0:00:04.6]} 40.
Rxb5 {[%clk 0:00:02.8]} 40... Rxg3 {[%clk 0:00:05.2]} 41. Kh2 {[%clk 0:00:02.4]}
41... Rc3 {[%clk 0:00:04.7]} 42. Kg2 {[%clk 0:00:02.8]} 42... Kg6 {[%clk
0:00:05.1]} 43. Kf2 {[%clk 0:00:02.9]} 43... Rc2+ {[%clk 0:00:02.2]} 44. Kf3
{[%clk 0:00:03.1]} 44... Ra2 {[%clk 0:00:02.8]} 45. Kg4 {[%clk 0:00:02.9]} 45...
a4 {[%clk 0:00:03]} 46. Rb6+ {[%clk 0:00:02.9]} 46... Kg7 {[%clk 0:00:02.9]} 47.
Rb7+ {[%clk 0:00:03.8]} 47... Kg6 {[%clk 0:00:03.3]} 48. Rb6+ {[%clk 0:00:03.4]}
48... Kg7 {[%clk 0:00:03.7]} 49. bxa4 {[%clk 0:00:03.6]} 49... Rxa4+ {[%clk
0:00:03.5]} 50. Kh5 {[%clk 0:00:04.5]} 50... Ra5 {[%clk 0:00:03.8]} 51. Rb7+
{[%clk 0:00:04.8]} 51... Kg8 {[%clk 0:00:04.4]} 52. Rb8+ {[%clk 0:00:04.7]}
52... Kg7 {[%clk 0:00:04.2]} 53. Rb7+ {[%clk 0:00:05.6]} 53... Kg8 {[%clk
0:00:04.4]} 54. Re7 {[%clk 0:00:05.8]} 54... Ra1 {[%clk 0:00:03.8]} 55. Re8+
{[%clk 0:00:03.8]} 55... Kg7 {[%clk 0:00:03.7]} 56. Re7+ {[%clk 0:00:04.1]}
56... Kg8 {[%clk 0:00:04.2]} 57. Re4 {[%clk 0:00:02.3]} 57... Rh1+ {[%clk
0:00:03.8]} 58. Kg4 {[%clk 0:00:02.9]} 58... Rg1+ {[%clk 0:00:04.7]} 59. Kf5
{[%clk 0:00:03.4]} 59... Rf1+ {[%clk 0:00:05.2]} 60. Kg4 {[%clk 0:00:02.9]}
60... Kg7 {[%clk 0:00:05.6]} 61. Re7+ {[%clk 0:00:02.3]} 61... Kg6 {[%clk
0:00:06.1]} 62. Re6+ {[%clk 0:00:02.8]} 62... Kg7 {[%clk 0:00:06.6]} 63. Rh6
{[%clk 0:00:02.8]} 63... Rg1+ {[%clk 0:00:06.5]} 64. Kf4 {[%clk 0:00:03.4]}
64... Rf1+ {[%clk 0:00:04.9]} 1/2-1/2

[Event "Late-Titled-Tuesday-Blitz-June-04-2024"]
[Site "Chess.com"]
[Date "2024.06.04"]
[Round "7"]
[White "Viktor_Poddubnyi"]
[Black "Darkbluelord"]
[Result "0-1"]
[WhiteElo "2339"]
[BlackElo "2140"]
[TimeControl "180+1"]
[EndTime "15:16:54 PDT"]
[Termination "Darkbluelord won on time"]

1. e4 {[%clk 0:03:00]} 1... c5 {[%clk 0:02:59.8]} 2. Nf3 {[%clk 0:02:59.6]} 2...
d6 {[%clk 0:02:59.8]} 3. d4 {[%clk 0:02:59.8]} 3... cxd4 {[%clk 0:03:00.2]} 4.
Nxd4 {[%clk 0:03:00.7]} 4... Nf6 {[%clk 0:02:59.6]} 5. Nc3 {[%clk 0:03:01.2]}
5... g6 {[%clk 0:02:59.5]} 6. Be3 {[%clk 0:03:01.1]} 6... Bg7 {[%clk 0:02:59.9]}
7. f3 {[%clk 0:03:01.3]} 7... O-O {[%clk 0:02:59.8]} 8. Qd2 {[%clk 0:03:01.8]}
8... Nc6 {[%clk 0:02:59.9]} 9. O-O-O {[%clk 0:03:02]} 9... d5 {[%clk 0:02:57.8]}
10. Qe1 {[%clk 0:03:01.9]} 10... Rb8 {[%clk 0:02:57.2]} 11. h4 {[%clk
0:02:48.5]} 11... e5 {[%clk 0:02:51.9]} 12. Nxc6 {[%clk 0:02:46.3]} 12... bxc6
{[%clk 0:02:51.9]} 13. exd5 {[%clk 0:02:45.8]} 13... cxd5 {[%clk 0:02:51.6]} 14.
Bc4 {[%clk 0:02:05.4]} 14... d4 {[%clk 0:02:49.7]} 15. Bg5 {[%clk 0:01:52.9]}
15... Qb6 {[%clk 0:02:48.1]} 16. Na4 {[%clk 0:01:48.1]} 16... Qc6 {[%clk
0:02:09.2]} 17. b3 {[%clk 0:01:40.9]} 17... Qd6 {[%clk 0:01:38.8]} 18. Kb1
{[%clk 0:01:13.9]} 18... Bf5 {[%clk 0:01:23.8]} 19. g4 {[%clk 0:01:07]} 19...
Be6 {[%clk 0:01:24]} 20. Nb2 {[%clk 0:01:00.8]} 20... Rfc8 {[%clk 0:01:11.6]}
21. Bxe6 {[%clk 0:00:30.7]} 21... fxe6 {[%clk 0:01:07.5]} 22. Bxf6 {[%clk
0:00:29.1]} 22... Bxf6 {[%clk 0:01:06.6]} 23. h5 {[%clk 0:00:28.1]} 23... Qc5
{[%clk 0:00:56.8]} 24. Qe4 {[%clk 0:00:27.1]} 24... g5 {[%clk 0:00:51.6]} 25.
Rc1 {[%clk 0:00:22.7]} 25... Qc3 {[%clk 0:00:50.7]} 26. Qd3 {[%clk 0:00:19.9]}
26... Qa5 {[%clk 0:00:42.7]} 27. Rhe1 {[%clk 0:00:17.9]} 27... Rc3 {[%clk
0:00:42.1]} 28. Qe2 {[%clk 0:00:15.1]} 28... Rbc8 {[%clk 0:00:41]} 29. Nd3
{[%clk 0:00:14.5]} 29... Qa3 {[%clk 0:00:28.1]} 30. Nxe5 {[%clk 0:00:13.4]}
30... Re3 {[%clk 0:00:21.1]} 31. Qb5 {[%clk 0:00:10.6]} 31... Bxe5 {[%clk
0:00:12]} 32. Rxe3 {[%clk 0:00:09.8]} 32... dxe3 {[%clk 0:00:07.7]} 33. Qxe5
{[%clk 0:00:09.6]} 33... Qc5 {[%clk 0:00:06.9]} 34. Qxc5 {[%clk 0:00:08.9]}
34... Rxc5 {[%clk 0:00:06.4]} 35. Re1 {[%clk 0:00:08.9]} 35... Re5 {[%clk
0:00:06.8]} 36. c4 {[%clk 0:00:08.3]} 36... h6 {[%clk 0:00:07.7]} 37. Kc2 {[%clk
0:00:08.4]} 37... Kf7 {[%clk 0:00:08.2]} 38. Kd3 {[%clk 0:00:08.8]} 38... Ra5
{[%clk 0:00:07.8]} 39. a4 {[%clk 0:00:08.4]} 39... e5 {[%clk 0:00:08.7]} 40. Ke4
{[%clk 0:00:07.6]} 40... Ke6 {[%clk 0:00:09.1]} 41. Rxe3 {[%clk 0:00:08]} 41...
Ra6 {[%clk 0:00:09.5]} 42. Rd3 {[%clk 0:00:07.4]} 42... Rb6 {[%clk 0:00:09.4]}
43. Ke3 {[%clk 0:00:07.8]} 43... Rb4 {[%clk 0:00:08.7]} 44. Kd2 {[%clk
0:00:07.8]} 44... e4 {[%clk 0:00:08.1]} 45. fxe4 {[%clk 0:00:07.4]} 45... Ke5
{[%clk 0:00:08.7]} 46. Kc3 {[%clk 0:00:07.5]} 46... a5 {[%clk 0:00:07.6]} 47.
Rd5+ {[%clk 0:00:06.8]} 47... Kxe4 {[%clk 0:00:07.8]} 48. Rxa5 {[%clk
0:00:06.9]} 48... Rb7 {[%clk 0:00:07.8]} 49. Ra6 {[%clk 0:00:07.2]} 49... Rf7
{[%clk 0:00:07.8]} 50. Rxh6 {[%clk 0:00:07.3]} 50... Rf3+ {[%clk 0:00:08.7]} 51.
Kb4 {[%clk 0:00:07.2]} 51... Kf4 {[%clk 0:00:09.6]} 52. Rg6 {[%clk 0:00:06.9]}
52... Kxg4 {[%clk 0:00:10.5]} 53. h6 {[%clk 0:00:07.2]} 53... Rh3 {[%clk
0:00:10.8]} 54. a5 {[%clk 0:00:07.4]} 54... Kf5 {[%clk 0:00:11.4]} 55. Rc6
{[%clk 0:00:06.6]} 55... g4 {[%clk 0:00:11.8]} 56. Rc7 {[%clk 0:00:05.8]} 56...
Rxh6 {[%clk 0:00:11]} 57. Rd7 {[%clk 0:00:04.7]} 57... g3 {[%clk 0:00:11]} 58.
Rd1 {[%clk 0:00:04.5]} 58... Kf4 {[%clk 0:00:09.7]} 59. Kb5 {[%clk 0:00:03.7]}
59... Kf3 {[%clk 0:00:09.2]} 60. c5 {[%clk 0:00:03.6]} 60... Kf2 {[%clk
0:00:08.7]} 61. a6 {[%clk 0:00:03.2]} 61... g2 {[%clk 0:00:07.7]} 0-1

[Event "Late-Titled-Tuesday-Blitz-June-04-2024"]
[Site "Chess.com"]
[Date "2024.06.04"]
[Round "7"]
[White "glucolisis04"]
[Black "janhelmer03"]
[Result "1-0"]
[WhiteElo "2283"]
[BlackElo "2383"]
[TimeControl "180+1"]
[EndTime "15:17:00 PDT"]
[Termination "glucolisis04 won by checkmate"]

1. d4 {[%clk 0:03:00.9]} 1... d5 {[%clk 0:03:00]} 2. c4 {[%clk 0:03:01.1]} 2...
e6 {[%clk 0:02:48.9]} 3. Nc3 {[%clk 0:03:01.1]} 3... Nf6 {[%clk 0:02:27.9]} 4.
cxd5 {[%clk 0:02:59.6]} 4... exd5 {[%clk 0:02:11.6]} 5. Bg5 {[%clk 0:02:58.5]}
5... c6 {[%clk 0:02:10.2]} 6. e3 {[%clk 0:02:58.4]} 6... Be7 {[%clk 0:02:10.1]}
7. Bd3 {[%clk 0:02:58.4]} 7... h6 {[%clk 0:02:10]} 8. Bf4 {[%clk 0:02:57.8]}
8... O-O {[%clk 0:02:08.6]} 9. Qc2 {[%clk 0:02:57.1]} 9... Nbd7 {[%clk
0:02:06.7]} 10. Nf3 {[%clk 0:02:54.4]} 10... Ne8 {[%clk 0:02:06.7]} 11. O-O
{[%clk 0:02:46.1]} 11... Ndf6 {[%clk 0:02:03.2]} 12. Rab1 {[%clk 0:02:40.6]}
12... Nd6 {[%clk 0:01:54.7]} 13. Ne5 {[%clk 0:02:30.8]} 13... Be6 {[%clk
0:01:47.9]} 14. b4 {[%clk 0:02:15.7]} 14... a6 {[%clk 0:01:46.4]} 15. a4 {[%clk
0:02:14.7]} 15... Nh5 {[%clk 0:01:38]} 16. Bg3 {[%clk 0:02:14.1]} 16... Nxg3
{[%clk 0:01:37.7]} 17. hxg3 {[%clk 0:02:13.7]} 17... Qc8 {[%clk 0:01:16.7]} 18.
f4 {[%clk 0:02:12.4]} 18... Bf5 {[%clk 0:01:01.6]} 19. a5 {[%clk 0:02:00]} 19...
Bxd3 {[%clk 0:01:00]} 20. Qxd3 {[%clk 0:01:59.6]} 20... Qf5 {[%clk 0:00:58.2]}
21. Qxf5 {[%clk 0:01:44.3]} 21... Nxf5 {[%clk 0:00:59.1]} 22. Kf2 {[%clk
0:01:44.3]} 22... Rfe8 {[%clk 0:00:49.8]} 23. Na4 {[%clk 0:01:38.1]} 23... f6
{[%clk 0:00:44.6]} 24. Nd3 {[%clk 0:01:31.5]} 24... Bf8 {[%clk 0:00:32.6]} 25.
Rfe1 {[%clk 0:01:28.8]} 25... Nd6 {[%clk 0:00:30]} 26. Nac5 {[%clk 0:01:24.2]}
26... Re7 {[%clk 0:00:21.9]} 27. Nb2 {[%clk 0:00:48.3]} 27... Nb5 {[%clk
0:00:16.9]} 28. Rbc1 {[%clk 0:00:45.2]} 28... Nd6 {[%clk 0:00:16.1]} 29. g4
{[%clk 0:00:40.3]} 29... Rae8 {[%clk 0:00:16.4]} 30. Kf3 {[%clk 0:00:36.1]}
30... Ne4 {[%clk 0:00:15.3]} 31. Nxe4 {[%clk 0:00:35.4]} 31... Rxe4 {[%clk
0:00:15.9]} 32. Nd3 {[%clk 0:00:32.6]} 32... Bd6 {[%clk 0:00:15.5]} 33. Nc5
{[%clk 0:00:30.5]} 33... R4e7 {[%clk 0:00:11.1]} 34. g3 {[%clk 0:00:28.3]} 34...
Kf7 {[%clk 0:00:11.1]} 35. f5 {[%clk 0:00:23.1]} 35... Rh8 {[%clk 0:00:04.9]}
36. Rh1 {[%clk 0:00:19.9]} 36... g6 {[%clk 0:00:04.1]} 37. Rce1 {[%clk
0:00:17.4]} 37... h5 {[%clk 0:00:02.6]} 38. fxg6+ {[%clk 0:00:11.8]} 38... Kxg6
{[%clk 0:00:02.6]} 39. gxh5+ {[%clk 0:00:12.5]} 39... Rxh5 {[%clk 0:00:03.1]}
40. Rxh5 {[%clk 0:00:12.7]} 40... Kxh5 {[%clk 0:00:04]} 41. e4 {[%clk
0:00:11.2]} 41... dxe4+ {[%clk 0:00:01.8]} 42. Nxe4 {[%clk 0:00:11.8]} 42...
Bxb4 {[%clk 0:00:02.2]} 43. Nxf6+ {[%clk 0:00:10.6]} 43... Kg6 {[%clk
0:00:02.9]} 44. Rxe7 {[%clk 0:00:10.7]} 44... Bxe7 {[%clk 0:00:03.6]} 45. Nd7
{[%clk 0:00:07.6]} 45... Bb4 {[%clk 0:00:02.4]} 46. Nc5 {[%clk 0:00:07.7]} 46...
Bxc5 {[%clk 0:00:02.8]} 47. dxc5 {[%clk 0:00:08.5]} 47... Kf5 {[%clk 0:00:03]}
48. g4+ {[%clk 0:00:06.5]} 48... Ke5 {[%clk 0:00:03.6]} 49. Kg3 {[%clk
0:00:06.1]} 49... Kd5 {[%clk 0:00:04.2]} 50. g5 {[%clk 0:00:06.4]} 50... Kxc5
{[%clk 0:00:03.1]} 51. g6 {[%clk 0:00:06.4]} 51... Kb5 {[%clk 0:00:04]} 52. g7
{[%clk 0:00:06.5]} 52... Kxa5 {[%clk 0:00:04.9]} 53. g8=Q {[%clk 0:00:06.8]}
53... b5 {[%clk 0:00:05.8]} 54. Qa2+ {[%clk 0:00:06.9]} 54... Kb4 {[%clk
0:00:06.1]} 55. Qb2+ {[%clk 0:00:06.2]} 55... Kc5 {[%clk 0:00:06.3]} 56. Qc3+
{[%clk 0:00:06.6]} 56... Kb6 {[%clk 0:00:06.5]} 57. Kf4 {[%clk 0:00:04.6]} 57...
a5 {[%clk 0:00:07.4]} 58. Ke4 {[%clk 0:00:04.4]} 58... b4 {[%clk 0:00:08.3]} 59.
Qb3 {[%clk 0:00:04]} 59... c5 {[%clk 0:00:08.7]} 60. Kd5 {[%clk 0:00:03.3]}
60... Kb5 {[%clk 0:00:09.3]} 61. Qc4+ {[%clk 0:00:03.2]} 61... Ka4 {[%clk
0:00:09.9]} 62. Qa2+ {[%clk 0:00:03.9]} 62... Kb5 {[%clk 0:00:10]} 63. Qe2+
{[%clk 0:00:03.9]} 63... Ka4 {[%clk 0:00:09.6]} 64. Qd1+ {[%clk 0:00:04.1]}
64... b3 {[%clk 0:00:09.8]} 65. Kc4 {[%clk 0:00:03.7]} 65... Ka3 {[%clk
0:00:08.7]} 66. Qxb3# {[%clk 0:00:04.4]} 1-0

[Event "Late-Titled-Tuesday-Blitz-June-04-2024"]
[Site "Chess.com"]
[Date "2024.06.04"]
[Round "7"]
[White "duone"]
[Black "GMTalks_Youtube"]
[Result "0-1"]
[WhiteElo "2403"]
[BlackElo "2734"]
[TimeControl "180+1"]
[EndTime "15:17:08 PDT"]
[Termination "GMTalks_Youtube won by checkmate"]

1. Nf3 {[%clk 0:02:59.8]} 1... d5 {[%clk 0:02:58.7]} 2. c4 {[%clk 0:02:58.6]}
2... e6 {[%clk 0:02:57.3]} 3. g3 {[%clk 0:02:57.8]} 3... Nf6 {[%clk 0:02:56.8]}
4. Bg2 {[%clk 0:02:58.3]} 4... Bd6 {[%clk 0:02:56.9]} 5. O-O {[%clk 0:02:58.6]}
5... O-O {[%clk 0:02:57.4]} 6. d4 {[%clk 0:02:56.8]} 6... h6 {[%clk 0:02:56.9]}
7. Qc2 {[%clk 0:02:55.8]} 7... Nc6 {[%clk 0:02:55.8]} 8. b3 {[%clk 0:02:48.3]}
8... a5 {[%clk 0:02:53]} 9. Nc3 {[%clk 0:02:48]} 9... Re8 {[%clk 0:02:36.9]} 10.
Bb2 {[%clk 0:02:48.1]} 10... Bd7 {[%clk 0:02:30.8]} 11. a3 {[%clk 0:02:48]}
11... b6 {[%clk 0:02:27.2]} 12. e4 {[%clk 0:02:46.2]} 12... dxe4 {[%clk
0:02:17.5]} 13. Nxe4 {[%clk 0:02:45.1]} 13... Nxe4 {[%clk 0:02:11.6]} 14. Qxe4
{[%clk 0:02:44.7]} 14... Rb8 {[%clk 0:02:08.8]} 15. Rad1 {[%clk 0:02:38.4]}
15... Qe7 {[%clk 0:02:07.6]} 16. Rfe1 {[%clk 0:02:27.3]} 16... Bxa3 {[%clk
0:02:07]} 17. Bxa3 {[%clk 0:02:22.1]} 17... Qxa3 {[%clk 0:02:06.2]} 18. Ne5
{[%clk 0:02:21.8]} 18... Nxe5 {[%clk 0:02:05.6]} 19. dxe5 {[%clk 0:02:22]} 19...
Red8 {[%clk 0:02:02]} 20. Rd3 {[%clk 0:02:10.7]} 20... Be8 {[%clk 0:01:56.7]}
21. Red1 {[%clk 0:02:09.6]} 21... Rxd3 {[%clk 0:01:56]} 22. Qxd3 {[%clk
0:02:07.3]} 22... a4 {[%clk 0:01:53.8]} 23. bxa4 {[%clk 0:02:06.3]} 23... Qxd3
{[%clk 0:01:53.1]} 24. Rxd3 {[%clk 0:02:06.6]} 24... Bxa4 {[%clk 0:01:53.2]} 25.
Ra3 {[%clk 0:02:07.2]} 25... Bc2 {[%clk 0:01:46.8]} 26. Ra7 {[%clk 0:02:06.5]}
26... c5 {[%clk 0:01:46.4]} 27. Bc6 {[%clk 0:02:01.1]} 27... Rd8 {[%clk
0:01:27.6]} 28. Rd7 {[%clk 0:01:59]} 28... Rxd7 {[%clk 0:01:26]} 29. Bxd7 {[%clk
0:01:59.9]} 29... Kf8 {[%clk 0:01:24.1]} 30. f4 {[%clk 0:01:59.8]} 30... Ke7
{[%clk 0:01:19.3]} 31. Bb5 {[%clk 0:02:00.2]} 31... g5 {[%clk 0:01:17.3]} 32.
Kf2 {[%clk 0:02:00.3]} 32... gxf4 {[%clk 0:01:16.8]} 33. gxf4 {[%clk 0:02:01.2]}
33... f6 {[%clk 0:01:11.5]} 34. Ke3 {[%clk 0:02:00.9]} 34... fxe5 {[%clk
0:01:11.6]} 35. fxe5 {[%clk 0:02:01.6]} 35... Kf7 {[%clk 0:01:08.9]} 36. Kf4
{[%clk 0:02:02.1]} 36... Bd3 {[%clk 0:01:03.2]} 37. Ke3 {[%clk 0:02:00.2]} 37...
Bf1 {[%clk 0:01:02.9]} 38. Kf2 {[%clk 0:02:00.4]} 38... Bh3 {[%clk 0:01:01.7]}
39. Ke3 {[%clk 0:02:00.3]} 39... Kg6 {[%clk 0:01:00.3]} 40. Kf4 {[%clk
0:02:00.6]} 40... Kh5 {[%clk 0:00:59.8]} 41. Kg3 {[%clk 0:01:48.7]} 41... Bf1
{[%clk 0:00:55.3]} 42. h4 {[%clk 0:01:48.8]} 42... Kg6 {[%clk 0:00:54]} 43. Kf4
{[%clk 0:01:45.9]} 43... Bd3 {[%clk 0:00:47.5]} 44. Ke3 {[%clk 0:01:44.7]} 44...
Bc2 {[%clk 0:00:45.9]} 45. Kf4 {[%clk 0:01:43.1]} 45... Bd1 {[%clk 0:00:44.4]}
46. Bd7 {[%clk 0:01:34.8]} 46... Kf7 {[%clk 0:00:43.9]} 47. Bb5 {[%clk 0:01:35]}
47... Bh5 {[%clk 0:00:41.3]} 48. Kg3 {[%clk 0:01:34.9]} 48... Ke7 {[%clk
0:00:40.7]} 49. Kf4 {[%clk 0:01:35.3]} 49... Be8 {[%clk 0:00:40.2]} 50. Ba6
{[%clk 0:01:33.1]} 50... Bc6 {[%clk 0:00:33.7]} 51. Kg4 {[%clk 0:01:28.5]} 51...
Kf7 {[%clk 0:00:32.5]} 52. Kf4 {[%clk 0:01:17.6]} 52... Be8 {[%clk 0:00:23.3]}
53. Kg4 {[%clk 0:01:13.3]} 53... Ke7 {[%clk 0:00:22.9]} 54. Kf4 {[%clk
0:01:13.4]} 54... Kd8 {[%clk 0:00:21.6]} 55. Kg4 {[%clk 0:01:10.6]} 55... Kc7
{[%clk 0:00:21.2]} 56. Kf4 {[%clk 0:01:10.8]} 56... Kb8 {[%clk 0:00:20.9]} 57.
Kg4 {[%clk 0:01:10.5]} 57... Ka7 {[%clk 0:00:19.9]} 58. Bc8 {[%clk 0:01:10.6]}
58... Bf7 {[%clk 0:00:17.8]} 59. Bd7 {[%clk 0:01:09.6]} 59... Ka6 {[%clk
0:00:18.3]} 60. Kf4 {[%clk 0:01:01.7]} 60... Ka5 {[%clk 0:00:18.8]} 61. Bb5
{[%clk 0:00:59.9]} 61... Kb4 {[%clk 0:00:19.3]} 62. Ke4 {[%clk 0:01:00.3]} 62...
Kc3 {[%clk 0:00:18.4]} 63. Kf4 {[%clk 0:00:59.2]} 63... Bg6 {[%clk 0:00:17.8]}
64. Bd7 {[%clk 0:00:56.7]} 64... Bf5 {[%clk 0:00:18.2]} 65. Bb5 {[%clk
0:00:55.9]} 65... Bd3 {[%clk 0:00:18.3]} 66. Kg4 {[%clk 0:00:54.1]} 66... Bxc4
{[%clk 0:00:18.2]} 67. Bd7 {[%clk 0:00:37.7]} 67... Be2+ {[%clk 0:00:17.4]} 68.
Kf4 {[%clk 0:00:36.1]} 68... Bc4 {[%clk 0:00:16.7]} 69. Kg4 {[%clk 0:00:35.8]}
69... b5 {[%clk 0:00:16.7]} 70. Kh5 {[%clk 0:00:36.3]} 70... b4 {[%clk
0:00:17.3]} 71. Ba4 {[%clk 0:00:30.6]} 71... Bb3 {[%clk 0:00:17]} 72. Bb5 {[%clk
0:00:29.1]} 72... Bc2 {[%clk 0:00:17.2]} 73. Kxh6 {[%clk 0:00:26.4]} 73... b3
{[%clk 0:00:17.8]} 74. Kg7 {[%clk 0:00:23.7]} 74... b2 {[%clk 0:00:18]} 75. h5
{[%clk 0:00:24.6]} 75... b1=Q {[%clk 0:00:18.3]} 76. h6 {[%clk 0:00:25.5]} 76...
Qg1+ {[%clk 0:00:18.3]} 77. Kf8 {[%clk 0:00:25.3]} 77... Qg6 {[%clk 0:00:18.1]}
78. Bd7 {[%clk 0:00:24.5]} 78... Qxh6+ {[%clk 0:00:17.8]} 79. Ke7 {[%clk
0:00:25]} 79... Bf5 {[%clk 0:00:17.6]} 80. Kd6 {[%clk 0:00:25.9]} 80... c4
{[%clk 0:00:17.8]} 81. Bxe6 {[%clk 0:00:26.8]} 81... Qxe6+ {[%clk 0:00:16.8]}
82. Kc5 {[%clk 0:00:26.4]} 82... Qxe5+ {[%clk 0:00:17]} 83. Kb6 {[%clk
0:00:27.3]} 83... Qd6+ {[%clk 0:00:17]} 84. Kb7 {[%clk 0:00:28.2]} 84... Kb4
{[%clk 0:00:15.4]} 85. Ka8 {[%clk 0:00:29.1]} 85... Qd7 {[%clk 0:00:14.6]} 86.
Kb8 {[%clk 0:00:29.2]} 86... Kb5 {[%clk 0:00:15.3]} 87. Ka8 {[%clk 0:00:29.9]}
87... Kb6 {[%clk 0:00:15.9]} 88. Kb8 {[%clk 0:00:30.8]} 88... Qb7# {[%clk
0:00:16.1]} 0-1